[Event "FIDE WYCC Girls U18 2023"]
[Site "Montesilvano"]
[Date "2023.11.16"]
[Round "4.3"]
[White "Abrisqueta Zudaire, Leyre"]
[Black "Wikar, Martyna"]
[Result "0-1"]
[ECO "E10"]
[WhiteElo "2137"]
[BlackElo "2228"]
[Annotator "RC"]
[PlyCount "100"]
[EventDate "2023.11.13"]
[EventType "swiss"]
[EventCountry "ITA"]
[SourceTitle "playchess.com"]
[Source "ChessBase"]
[SourceQuality "1"]
[TimeControl "40/5400+30:1800+30"]

1. d4 {[%emt 0:00:02]} Nf6 {[%emt 0:00:09]} 2. c4 {[%emt 0:00:13]} e6 {[%emt 0:00:10]} 3. Nf3 {[%emt 0:00:19]} a6 {[%emt 0:00:08]} 4. g3 {[%emt 0:05:11]} b5 {[%emt 0:00:07]} 5. Qc2 {[%emt 0:08:44]} Bb7 {[%emt 0:01:23]} 6. Nbd2 {[%emt 0:00:50]} c5 {[%emt 0:05:18]} 7. cxb5 {[%emt 0:04:45]} cxd4 {[%emt 0:03:26]} 8. Bg2 {[%emt 0:01:21]} axb5 {[%emt 0:01:27]} 9. O-O {[%emt 0:00:51]} Nc6 {[%emt 0:02:29]} 10. Nb3 {[%emt 0:07:59]} Qb6 {[%emt 0:02:18]} 11. Rd1 {[%emt 0:06:30]} e5 {[%emt 0:07:59]} 12. Qf5 {[%emt 0:01:39]} d6 {[%emt 0:01:33]} 13. e3 {[%emt 0:05:38]} Ne7 {[%emt 0:08:10]} 14. Qd3 {[%emt 0:09:35]} Be4 {[%emt 0:03:17]} 15. Qf1 {[%emt 0:00:59]} Bd5 {[%emt 0:18:24]} 16. Bd2 {[%emt 0:03:35]} Qb7 {[%emt 0:00:22]} 17. Ne1 {[%emt 0:04:43]} dxe3 {[%emt 0:00:52]} 18. Bxe3 {[%emt 0:00:40]} Bxg2 {[%emt 0:00:41]} 19. Nxg2 {[%emt 0:00:16]} Ned5 {[%emt 0:00:59]} 20. Bg5 {[%emt 0:05:39]} h6 {[%emt 0:08:31]} 21. Bxf6 {[%emt 0:00:42]} Nxf6 {[%emt 0:00:08]} 22. Nh4 {[%emt 0:05:12]} g6 {[%emt 0:02:07]} 23. Qe2 {[%emt 0:05:09]} Be7 {[%emt 0:02:29]} 24. Qd2 {[%emt 0:05:41]} Kf8 {[%emt 0:01:45]} 25. Qb4 {[%emt 0:01:37]} Ra4 {[%emt 0:03:30]} 26. Qc3 {[%emt 0:01:31]} Kg7 {[%emt 0:00:37]} 27. Rdc1 {[%emt 0:01:53]} Rha8 {[%emt 0:02:34]} 28. a3 {[%emt 0:00:49]} Qd5 {[%emt 0:03:32]} 29. Ng2 {[%emt 0:01:02]} Rc4 {[%emt 0:03:58]} 30. Qe3 {[%emt 0:01:26]} Rac8 {[%emt 0:00:37]} 31. Rd1 {[%emt 0:00:42]} Qe6 {[%emt 0:00:24]} 32. Ne1 {[%emt 0:02:34]} d5 {[%emt 0:01:48]} 33. Nd2 {[%emt 0:01:20]} R4c7 {[%emt 0:01:13]} 34. Nd3 {[%emt 0:01:24]} Bd6 {[%emt 0:02:13]} 35. Qb6 {[%emt 0:01:45]} e4 {[%emt 0:01:16]} 36. Ne1 {[%emt 0:01:41]} Qd7 {[%emt 0:03:20]} 37. Nb3 {[%emt 0:00:30]} Rb7 {[%emt 0:00:44]} 38. Qe3 {[%emt 0:00:28]} Qh3 {[%emt 0:00:40]} 39. f3 {[%emt 0:01:19]} Re7 {[%emt 0:00:59]} 40. Qf2 {[%emt 0:00:00]} Bb8 {[%emt 0:00:00]} 41. Nd4 {[%emt 0:01:38]} Ba7 {[%emt 0:07:27]} 42. Qg2 {[%emt 0:00:51]} Qd7 {[%emt 0:05:20]} 43. Kh1 {[%emt 0:00:18]} Rc4 {[%emt 0:01:20]} 44. Nec2 {[%emt 0:01:16]} h5 {[%emt 0:00:30]} 45. b3 {[%emt 0:02:14]} Rc3 {[%emt 0:00:54]} 46. Qd2 {[%emt 0:00:08]} Qc8 {[%emt 0:02:33]} 47. Rac1 {[%emt 0:01:02]} Rec7 {[%emt 0:02:49]} 48. Nxb5 {[%emt 0:04:42]} Rxc2 {[%emt 0:00:31]} 49. Rxc2 {[%emt 0:00:04]} Rxc2 {[%emt 0:00:13]} 50. Nxa7 {[%emt 0:00:15]} Rxd2 0-1

[Event "FIDE WYCC Girls U18 2023"]
[Site "Montesilvano"]
[Date "2023.11.16"]
[Round "4.4"]
[White "Nguyen Hong Nhung"]
[Black "Kurmangaliyeva, Liya"]
[Result "1-0"]
[ECO "B24"]
[WhiteElo "1975"]
[BlackElo "2236"]
[Annotator "RC"]
[PlyCount "153"]
[EventDate "2023.11.13"]
[EventType "swiss"]
[EventCountry "ITA"]
[SourceTitle "playchess.com"]
[Source "ChessBase"]
[SourceQuality "1"]
[TimeControl "40/5400+30:1800+30"]

1. e4 {[%emt 0:00:03]} c5 {[%emt 0:00:16]} 2. Nc3 {[%emt 0:00:09]} Nc6 {[%emt 0:00:51]} 3. Bb5 {[%emt 0:00:10]} Nd4 {[%emt 0:01:56]} 4. Nf3 {[%emt 0:00:16]} a6 {[%emt 0:06:28]} 5. Bd3 {[%emt 0:00:25]} e6 {[%emt 0:00:47]} 6. O-O {[%emt 0:00:41]} Nc6 {[%emt 0:00:50]} 7. Be2 {[%emt 0:00:26]} Nd4 {[%emt 0:02:11]} 8. Bd3 {[%emt 0:00:27]} Nc6 {[%emt 0:00:44]} 9. Be2 {[%emt 0:00:07]} Be7 {[%emt 0:08:03]} 10. d4 {[%emt 0:02:18]} cxd4 {[%emt 0:00:10]} 11. Nxd4 {[%emt 0:00:07]} d6 {[%emt 0:01:59]} 12. Nxc6 {[%emt 0:06:21]} bxc6 {[%emt 0:00:10]} 13. Qd3 {[%emt 0:03:11]} Nf6 {[%emt 0:12:04]} 14. Rd1 {[%emt 0:19:14]} O-O {[%emt 0:06:27]} 15. Qg3 {[%emt 0:07:25]} Qc7 {[%emt 0:06:53]} 16. Bg5 {[%emt 0:06:38]} Rd8 {[%emt 0:09:34]} 17. Rd3 {[%emt 0:07:05]} e5 {[%emt 0:10:32]} 18. Rad1 {[%emt 0:05:35]} Be6 {[%emt 0:01:41]} 19. Bxf6 {[%emt 0:21:35]} Bxf6 {[%emt 0:00:13]} 20. Bg4 {[%emt 0:00:15]} Bc4 {[%emt 0:09:10]} 21. Rf3 {[%emt 0:01:48]} Qe7 {[%emt 0:00:19]} 22. b3 {[%emt 0:01:10]} Be6 {[%emt 0:00:07]} 23. Bxe6 {[%emt 0:01:04]} fxe6 {[%emt 0:01:33]} 24. Rfd3 {[%emt 0:01:03]} d5 {[%emt 0:00:43]} 25. Qg4 {[%emt 0:01:28]} Rf8 {[%emt 0:02:36]} 26. Na4 {[%emt 0:04:56]} Rab8 {[%emt 0:01:06]} 27. Rc3 {[%emt 0:03:09]} Rfc8 {[%emt 0:11:08]} 28. a3 {[%emt 0:02:02]} a5 {[%emt 0:03:25]} 29. h3 {[%emt 0:01:40]} Qe8 {[%emt 0:02:04]} 30. Nc5 {[%emt 0:02:07]} Kf7 {[%emt 0:00:34]} 31. Qh5+ {[%emt 0:00:06]} Kg8 {[%emt 0:00:46]} 32. Qg4 {[%emt 0:01:43]} Kf7 {[%emt 0:00:14]} 33. Rdd3 {[%emt 0:01:10]} Qe7 {[%emt 0:00:38]} 34. Qh5+ {[%emt 0:00:37]} Kg8 {[%emt 0:00:06]} 35. Qg4 {[%emt 0:00:23]} Re8 {[%emt 0:00:20]} 36. Rf3 {[%emt 0:00:39]} Rb5 {[%emt 0:00:47]} 37. Na4 {[%emt 0:00:19]} c5 {[%emt 0:00:59]} 38. Nxc5 {[%emt 0:00:57]} d4 {[%emt 0:00:32]} 39. Rc4 {[%emt 0:00:31]} Rxc5 {[%emt 0:00:11]} 40. Rxc5 {[%emt 0:00:00]} Qxc5 {[%emt 0:00:00]} 41. Rxf6 {[%emt 0:00:13]} Qxc2 {[%emt 0:10:26]} 42. Rxe6 {[%emt 0:01:07]} Rf8 {[%emt 0:02:59]} 43. Rxe5 {[%emt 0:03:32]} Qxf2+ {[%emt 0:03:04]} 44. Kh2 {[%emt 0:00:22]} d3 {[%emt 0:05:44]} 45. Rd5 {[%emt 0:02:51]} Qf4+ {[%emt 0:04:46]} 46. Qxf4 {[%emt 0:00:45]} Rxf4 {[%emt 0:00:03]} 47. Rxd3 {[%emt 0:08:01]} Rxe4 {[%emt 0:00:30]} 48. Kg3 {[%emt 0:00:11]} Re2 {[%emt 0:00:58]} 49. Kf3 {[%emt 0:00:33]} Ra2 {[%emt 0:01:26]} 50. a4 {[%emt 0:00:08]} Rb2 {[%emt 0:03:00]} 51. g4 {[%emt 0:00:26]} Kf7 {[%emt 0:00:08]} 52. Ke4 {[%emt 0:00:33]} Rc2 {[%emt 0:01:11]} 53. Kd4 {[%emt 0:00:40]} Rc7 {[%emt 0:00:17]} 54. Rc3 {[%emt 0:00:23]} Rb7 {[%emt 0:00:51]} 55. Kd5 {[%emt 0:04:59]} Ke7 {[%emt 0:00:31]} 56. g5 {[%emt 0:02:29]} Kf7 {[%emt 0:01:12]} 57. h4 {[%emt 0:01:02]} Kg6 {[%emt 0:00:12]} 58. Rc6+ {[%emt 0:06:28]} Kh5 {[%emt 0:00:34]} 59. Kc4 {[%emt 0:00:19]} Kxh4 {[%emt 0:00:50]} 60. g6 {[%emt 0:04:25]} hxg6 {[%emt 0:00:37]} 61. Rxg6 {[%emt 0:00:06]} Kh5 {[%emt 0:01:17]} 62. Ra6 {[%emt 0:00:23]} Rc7+ {[%emt 0:00:47]} 63. Kd4 {[%emt 0:00:24]} g5 {[%emt 0:00:56]} 64. Rxa5 {[%emt 0:00:05]} Kg4 {[%emt 0:00:05]} 65. b4 {[%emt 0:00:23]} Kf4 {[%emt 0:00:38]} 66. b5 {[%emt 0:00:25]} g4 {[%emt 0:00:21]} 67. b6 {[%emt 0:00:25]} Rc8 {[%emt 0:00:53]} 68. Rb5 {[%emt 0:00:46]} g3 {[%emt 0:00:17]} 69. Rb1 {[%emt 0:00:20]} g2 {[%emt 0:00:41]} 70. a5 {[%emt 0:00:17]} Rc2 {[%emt 0:00:37]} 71. Rg1 {[%emt 0:00:53]} Rb2 {[%emt 0:00:21]} 72. Kc5 {[%emt 0:00:20]} Ke5 {[%emt 0:00:33]} 73. Re1+ {[%emt 0:00:10]} Kf6 {[%emt 0:00:09]} 74. a6 {[%emt 0:00:11]} Re2 {[%emt 0:00:36]} 75. Rg1 {[%emt 0:00:11]} Ke6 {[%emt 0:00:47]} 76. a7 {[%emt 0:00:15]} Rc2+ {[%emt 0:00:04]} 77. Kb5 1-0

[Event "FIDE WYCC Girls U18 2023"]
[Site "Montesilvano"]
[Date "2023.11.16"]
[Round "4.5"]
[White "Starosta, Martyna"]
[Black "Blanquet, Camille"]
[Result "1/2-1/2"]
[ECO "B11"]
[WhiteElo "2208"]
[BlackElo "1953"]
[Annotator "RC"]
[PlyCount "91"]
[EventDate "2023.11.13"]
[EventType "swiss"]
[EventCountry "ITA"]
[SourceTitle "playchess.com"]
[Source "ChessBase"]
[SourceQuality "1"]
[TimeControl "40/5400+30:1800+30"]

1. e4 {[%emt 0:00:03]} c6 {[%emt 0:00:11]} 2. Nc3 {[%emt 0:00:06]} d5 {[%emt 0:00:13]} 3. Nf3 {[%emt 0:00:07]} Bg4 {[%emt 0:05:43]} 4. h3 {[%emt 0:00:07]} Bxf3 {[%emt 0:03:04]} 5. Qxf3 {[%emt 0:00:06]} e6 {[%emt 0:00:12]} 6. Be2 {[%emt 0:00:08]} Nd7 {[%emt 0:09:23]} 7. O-O {[%emt 0:00:20]} dxe4 {[%emt 0:03:42]} 8. Nxe4 {[%emt 0:01:43]} Ngf6 {[%emt 0:00:42]} 9. d4 {[%emt 0:00:32]} Nxe4 {[%emt 0:02:21]} 10. Qxe4 {[%emt 0:00:06]} Bd6 {[%emt 0:01:49]} 11. Bd3 {[%emt 0:10:49]} Nf6 {[%emt 0:04:05]} 12. Qh4 {[%emt 0:01:57]} Bc7 {[%emt 0:05:04]} 13. g3 {[%emt 0:10:23]} Qd7 {[%emt 0:13:08]} 14. Bg5 {[%emt 0:03:22]} O-O-O {[%emt 0:01:32]} 15. Bxf6 {[%emt 0:04:43]} gxf6 {[%emt 0:00:15]} 16. Qxf6 {[%emt 0:01:49]} Qxd4 {[%emt 0:03:35]} 17. Qxd4 {[%emt 0:01:18]} Rxd4 {[%emt 0:00:06]} 18. Rfe1 {[%emt 0:02:43]} Rg8 {[%emt 0:05:14]} 19. Bxh7 {[%emt 0:10:13]} Rh8 {[%emt 0:02:15]} 20. Bd3 {[%emt 0:01:33]} Rxh3 {[%emt 0:00:36]} 21. Kg2 {[%emt 0:00:43]} Rh8 {[%emt 0:00:37]} 22. Rh1 {[%emt 0:01:06]} Rdd8 {[%emt 0:03:24]} 23. Rae1 {[%emt 0:01:29]} Rxh1 {[%emt 0:03:06]} 24. Rxh1 {[%emt 0:00:41]} Be5 {[%emt 0:02:52]} 25. Rh7 {[%emt 0:02:58]} Rd7 {[%emt 0:02:09]} 26. b3 {[%emt 0:01:47]} Kd8 {[%emt 0:02:48]} 27. f4 {[%emt 0:01:17]} Bc3 {[%emt 0:03:01]} 28. g4 {[%emt 0:08:51]} Ke7 {[%emt 0:02:59]} 29. Kf3 {[%emt 0:14:38]} Kd6 {[%emt 0:01:55]} 30. g5 {[%emt 0:01:56]} Re7 {[%emt 0:03:14]} 31. Ke3 {[%emt 0:02:24]} b5 {[%emt 0:03:28]} 32. Be2 {[%emt 0:01:47]} b4 {[%emt 0:03:24]} 33. Bh5 {[%emt 0:03:03]} f6 {[%emt 0:07:19]} 34. Bf7 {[%emt 0:02:21]} fxg5 {[%emt 0:00:48]} 35. fxg5 {[%emt 0:00:11]} Ke5 {[%emt 0:00:34]} 36. g6 {[%emt 0:03:31]} Kf5 {[%emt 0:01:10]} 37. Rh5+ {[%emt 0:03:19]} Kf6 {[%emt 0:00:32]} 38. Rh8 {[%emt 0:00:46]} c5 {[%emt 0:01:11]} 39. Re8 {[%emt 0:03:50]} Rxe8 {[%emt 0:00:58]} 40. Bxe8 {[%emt 0:00:00]} Bd4+ {[%emt 0:00:00]} 41. Kf4 {[%emt 0:01:34]} e5+ {[%emt 0:01:55]} 42. Ke4 {[%emt 0:01:31]} Bc3 {[%emt 0:02:50]} 43. Ke3 {[%emt 0:04:03]} Bd4+ {[%emt 0:01:57]} 44. Ke4 {[%emt 0:00:18]} Bc3 {[%emt 0:00:19]} 45. Kd5 {[%emt 0:01:31]} Bd4 {[%emt 0:00:22]} 46. Ke4 {[%emt 0:03:02]} 1/2-1/2

[Event "FIDE WYCC Girls U18 2023"]
[Site "Montesilvano"]
[Date "2023.11.16"]
[Round "4.6"]
[White "Wan, Qian"]
[Black "Zhurova, Anna"]
[Result "0-1"]
[ECO "A40"]
[WhiteElo "1945"]
[BlackElo "2149"]
[Annotator "RC"]
[PlyCount "130"]
[EventDate "2023.11.13"]
[EventType "swiss"]
[EventCountry "ITA"]
[SourceTitle "playchess.com"]
[Source "ChessBase"]
[SourceQuality "1"]
[TimeControl "40/5400+30:1800+30"]

1. d4 {[%emt 0:00:03]} e6 {[%emt 0:00:05]} 2. Nf3 {[%emt 0:00:17]} c5 {[%emt 0:00:05]} 3. c3 {[%emt 0:01:39]} Nf6 {[%emt 0:00:06]} 4. Bf4 {[%emt 0:00:07]} Nc6 {[%emt 0:00:05]} 5. e3 {[%emt 0:00:36]} Nh5 {[%emt 0:00:10]} 6. Bg5 {[%emt 0:04:32]} Qb6 {[%emt 0:00:23]} 7. b3 {[%emt 0:06:16]} h6 {[%emt 0:01:39]} 8. Bh4 {[%emt 0:00:23]} g5 {[%emt 0:00:57]} 9. Nfd2 {[%emt 0:07:32]} Nf6 {[%emt 0:05:56]} 10. Nc4 {[%emt 0:00:49]} Qd8 {[%emt 0:00:16]} 11. Bg3 {[%emt 0:00:05]} d5 {[%emt 0:06:03]} 12. Ne5 {[%emt 0:00:36]} cxd4 {[%emt 0:01:48]} 13. Nxc6 {[%emt 0:03:58]} bxc6 {[%emt 0:00:46]} 14. Qxd4 {[%emt 0:00:08]} Rg8 {[%emt 0:01:24]} 15. Nd2 {[%emt 0:01:30]} Bd7 {[%emt 0:06:27]} 16. Be5 {[%emt 0:05:25]} Be7 {[%emt 0:00:29]} 17. Be2 {[%emt 0:04:28]} c5 {[%emt 0:01:52]} 18. Qd3 {[%emt 0:00:02]} Bc6 {[%emt 0:00:26]} 19. O-O {[%emt 0:00:13]} Kf8 {[%emt 0:01:09]} 20. c4 {[%emt 0:06:10]} Nd7 {[%emt 0:01:35]} 21. Bc3 {[%emt 0:03:38]} Bf6 {[%emt 0:00:14]} 22. cxd5 {[%emt 0:00:55]} exd5 {[%emt 0:00:34]} 23. Rac1 {[%emt 0:04:09]} a6 {[%emt 0:00:53]} 24. a4 {[%emt 0:01:29]} g4 {[%emt 0:01:08]} 25. Qh7 {[%emt 0:06:03]} Ke7 {[%emt 0:27:20]} 26. Qxh6 {[%emt 0:06:06]} Rg6 {[%emt 0:00:48]} 27. Bxf6+ {[%emt 0:03:29]} Rxf6 {[%emt 0:02:12]} 28. Qg5 {[%emt 0:00:49]} Qh8 {[%emt 0:00:20]} 29. e4 {[%emt 0:06:34]} Rg8 {[%emt 0:04:18]} 30. Qe3 {[%emt 0:00:17]} d4 {[%emt 0:01:01]} 31. Qg3 {[%emt 0:00:39]} Qh6 {[%emt 0:01:17]} 32. Nc4 {[%emt 0:05:56]} Bxe4 {[%emt 0:00:52]} 33. Bd3 {[%emt 0:00:50]} Bxd3 {[%emt 0:03:04]} 34. Rce1+ {[%emt 0:00:46]} Kf8 {[%emt 0:01:05]} 35. Qxd3 {[%emt 0:00:25]} Rh8 {[%emt 0:04:49]} 36. Qg3 {[%emt 0:01:01]} Qh4 {[%emt 0:03:38]} 37. Qxh4 {[%emt 0:02:17]} Rxh4 {[%emt 0:00:06]} 38. g3 {[%emt 0:00:16]} Rh5 {[%emt 0:00:32]} 39. Kg2 {[%emt 0:00:05]} Rf3 {[%emt 0:00:54]} 40. h3 {[%emt 0:00:00]} Rxb3 {[%emt 0:00:00]} 41. hxg4 {[%emt 0:07:20]} Rg5 {[%emt 0:04:17]} 42. Nd6 {[%emt 0:08:25]} Nf6 {[%emt 0:01:32]} 43. Rb1 {[%emt 0:02:23]} Rxb1 {[%emt 0:03:22]} 44. Rxb1 {[%emt 0:00:02]} Nxg4 {[%emt 0:01:32]} 45. Kf3 {[%emt 0:04:31]} Rg6 {[%emt 0:09:07]} 46. Nf5 {[%emt 0:02:48]} Ke8 {[%emt 0:02:14]} 47. Rc1 {[%emt 0:04:37]} Ne5+ {[%emt 0:01:10]} 48. Ke4 {[%emt 0:00:44]} Nd7 {[%emt 0:00:16]} 49. Kd5 {[%emt 0:01:15]} Rg5 {[%emt 0:01:57]} 50. Ke4 {[%emt 0:01:14]} Rg4+ {[%emt 0:06:22]} 51. f4 {[%emt 0:01:14]} Kd8 {[%emt 0:00:36]} 52. Nd6 {[%emt 0:04:46]} Kc7 {[%emt 0:02:12]} 53. Nxf7 {[%emt 0:02:43]} Rxg3 {[%emt 0:00:26]} 54. Ne5 {[%emt 0:02:42]} Nxe5 {[%emt 0:01:48]} 55. Kxe5 {[%emt 0:00:31]} Kc6 {[%emt 0:02:32]} 56. f5 {[%emt 0:00:45]} Re3+ {[%emt 0:00:57]} 57. Kf4 {[%emt 0:00:35]} Kd5 {[%emt 0:02:50]} 58. f6 {[%emt 0:01:44]} Re8 {[%emt 0:00:49]} 59. Kf5 {[%emt 0:01:21]} d3 {[%emt 0:02:39]} 60. f7 {[%emt 0:00:52]} Rf8 {[%emt 0:00:21]} 61. Kf6 {[%emt 0:00:38]} c4 {[%emt 0:00:48]} 62. Re1 {[%emt 0:02:52]} c3 {[%emt 0:03:18]} 63. Re8 {[%emt 0:02:07]} Rxf7+ {[%emt 0:00:06]} 64. Kxf7 {[%emt 0:00:04]} c2 {[%emt 0:00:12]} 65. Rc8 {[%emt 0:00:07]} d2 {[%emt 0:00:16]} 0-1

[Event "FIDE WYCC Girls U18 2023"]
[Site "Montesilvano"]
[Date "2023.11.16"]
[Round "4.7"]
[White "Sipos, Stefania"]
[Black "Cornileau, Juliette"]
[Result "1/2-1/2"]
[ECO "B62"]
[WhiteElo "1932"]
[BlackElo "2089"]
[Annotator "NA RC"]
[PlyCount "82"]
[EventDate "2023.11.13"]
[EventType "swiss"]
[EventCountry "ITA"]
[SourceTitle "playchess.com"]
[Source "ChessBase"]
[SourceQuality "1"]
[TimeControl "40/5400+30:1800+30"]

1. e4 {[%emt 0:00:03]} c5 {[%emt 0:00:03]} 2. Nf3 {[%emt 0:00:07]} Nc6 {[%emt 0:00:04]} 3. Nc3 {[%emt 0:00:10]} d6 {[%emt 0:01:01]} 4. d4 {[%emt 0:00:14]} cxd4 {[%emt 0:00:05]} 5. Nxd4 {[%emt 0:00:05]} Nf6 {[%emt 0:00:04]} 6. Bg5 {[%emt 0:00:22]} e6 {[%emt 0:00:05]} 7. Qd3 {[%emt 0:00:16]} Bd7 {[%emt 0:19:52]} 8. Ndb5 {[%emt 0:00:30]} Nb4 {[%emt 0:01:23]} 9. Qd1 {[%emt 0:00:25]} a6 {[%emt 0:00:46]} 10. Bxf6 {[%emt 0:00:41]} gxf6 {[%emt 0:00:37]} 11. a3 {[%emt 0:00:53]} Nxc2+ {[%emt 0:18:53]} 12. Qxc2 {[%emt 0:00:07]} axb5 {[%emt 0:00:02]} 13. Bxb5 {[%emt 0:01:59]} Bxb5 {[%emt 0:03:04]} 14. Nxb5 {[%emt 0:00:08]} Qa5+ {[%emt 0:00:14]} 15. Nc3 {[%emt 0:00:09]} Qa6 {[%emt 0:06:36]} 16. Ne2 {[%emt 0:13:48]} Bh6 {[%emt 0:08:34]} 17. O-O {[%emt 0:05:01]} O-O {[%emt 0:00:14]} 18. Ng3 {[%emt 0:05:13]} Qb5 {[%emt 0:05:56]} 19. Rab1 {[%emt 0:28:33]} Rac8 {[%emt 0:07:37]} 20. Qd1 {[%emt 0:00:23]} Qe5 {[%emt 0:03:37]} 21. f4 {[%emt 0:17:17]} Qc5+ {[%emt 0:00:09]} 22. Kh1 {[%emt 0:00:12]} Kh8 {[%emt 0:01:13]} 23. Nh5 {[%emt 0:05:16]} Bg7 {[%emt 0:10:22]} 24. Nxg7 {[%emt 0:02:48]} Kxg7 {[%emt 0:00:02]} 25. Qg4+ {[%emt 0:00:40]} Kh8 {[%emt 0:00:08]} 26. Qh4 {[%emt 0:01:01]} Rg8 {[%emt 0:05:47]} 27. Qxf6+ {[%emt 0:02:15]} Rg7 {[%emt 0:00:04]} 28. Rg1 {[%emt 0:07:52]} Kg8 {[%emt 0:04:33]} 29. Rbd1 {[%emt 0:02:56]} Rg6 {[%emt 0:01:24]} 30. Qh4 {[%emt 0:01:52]} Qc2 {[%emt 0:00:48]} 31. f5 {[%emt 0:03:18]} exf5 {[%emt 0:00:16]} 32. exf5 {[%emt 0:01:06]} Qxf5 {[%emt 0:00:04]} 33. Rdf1 {[%emt 0:00:39]} Qe5 {[%emt 0:02:26]} 34. Rf2 {[%emt 0:00:30]} Qg5 {[%emt 0:00:53]} 35. Qxg5 {[%emt 0:00:27]} Rxg5 {[%emt 0:00:01]} 36. Rgf1 {[%emt 0:00:28]} Rc7 {[%emt 0:00:16]} 37. h3 {[%emt 0:00:28]} Rgc5 {[%emt 0:00:23]} 38. Kh2 {[%emt 0:00:33]} Rc2 {[%emt 0:01:06]} 39. Rxc2 {[%emt 0:00:28]} Rxc2 {[%emt 0:00:02]} 40. Rd1 {[%emt 0:00:00]} Rxb2 {[%emt 0:00:00]} 41. Rxd6 {[%emt 0:00:58]} Rb3 {[%emt 0:01:08]} 1/2-1/2

[Event "FIDE WYCC Girls U18 2023"]
[Site "Montesilvano"]
[Date "2023.11.16"]
[Round "4.8"]
[White "Naymanova, Patricie"]
[Black "Wisniowski, Natalie"]
[Result "1-0"]
[ECO "D45"]
[WhiteElo "2083"]
[BlackElo "1901"]
[Annotator "RC"]
[PlyCount "129"]
[EventDate "2023.11.13"]
[EventType "swiss"]
[EventCountry "ITA"]
[SourceTitle "playchess.com"]
[Source "ChessBase"]
[SourceQuality "1"]
[TimeControl "40/5400+30:1800+30"]

1. d4 {[%emt 0:00:03]} d5 {[%emt 0:00:08]} 2. c4 {[%emt 0:00:07]} c6 {[%emt 0:00:09]} 3. Nc3 {[%emt 0:00:17]} Nf6 {[%emt 0:00:17]} 4. Nf3 {[%emt 0:00:19]} e6 {[%emt 0:00:13]} 5. e3 {[%emt 0:00:29]} Nbd7 {[%emt 0:00:17]} 6. b3 {[%emt 0:01:18]} Bd6 {[%emt 0:01:09]} 7. Bb2 {[%emt 0:00:20]} O-O {[%emt 0:00:34]} 8. Bd3 {[%emt 0:00:09]} b6 {[%emt 0:00:38]} 9. O-O {[%emt 0:00:27]} Bb7 {[%emt 0:00:35]} 10. Re1 {[%emt 0:01:53]} Qe7 {[%emt 0:01:56]} 11. Nd2 {[%emt 0:20:48]} Rfe8 {[%emt 0:06:40]} 12. Rc1 {[%emt 0:20:00]} Rac8 {[%emt 0:03:06]} 13. f3 {[%emt 0:10:54]} Qf8 {[%emt 0:04:30]} 14. Bb1 {[%emt 0:03:32]} c5 {[%emt 0:06:08]} 15. Nb5 {[%emt 0:01:12]} Bb8 {[%emt 0:01:00]} 16. dxc5 {[%emt 0:01:36]} bxc5 {[%emt 0:02:03]} 17. Nf1 {[%emt 0:04:45]} a6 {[%emt 0:02:34]} 18. Nc3 {[%emt 0:02:14]} Nb6 {[%emt 0:03:10]} 19. Ne2 {[%emt 0:00:11]} Red8 {[%emt 0:03:41]} 20. Qc2 {[%emt 0:01:18]} Nbd7 {[%emt 0:04:33]} 21. Neg3 {[%emt 0:03:14]} Qe7 {[%emt 0:03:43]} 22. Rcd1 {[%emt 0:04:45]} Nf8 {[%emt 0:04:46]} 23. Kh1 {[%emt 0:00:41]} Ng6 {[%emt 0:07:21]} 24. Bc3 {[%emt 0:01:15]} Bc7 {[%emt 0:02:44]} 25. Qb2 {[%emt 0:04:03]} Rb8 {[%emt 0:09:42]} 26. Qc2 {[%emt 0:04:09]} Bc6 {[%emt 0:02:02]} 27. cxd5 {[%emt 0:07:46]} Nxd5 {[%emt 0:01:27]} 28. Bd2 {[%emt 0:01:15]} Rbc8 {[%emt 0:04:31]} 29. Ne4 {[%emt 0:01:25]} Bb6 {[%emt 0:01:19]} 30. a4 {[%emt 0:00:13]} a5 {[%emt 0:05:29]} 31. Bc1 {[%emt 0:03:30]} Bb7 {[%emt 0:02:09]} 32. Nfd2 {[%emt 0:00:54]} Ba6 {[%emt 0:03:36]} 33. Nc4 {[%emt 0:00:09]} Bc7 {[%emt 0:00:24]} 34. Ba3 {[%emt 0:00:28]} Nb4 {[%emt 0:03:12]} 35. Qf2 {[%emt 0:00:16]} Ne5 {[%emt 0:01:21]} 36. Nxe5 {[%emt 0:00:39]} Bxe5 {[%emt 0:00:10]} 37. f4 {[%emt 0:00:08]} Bb8 {[%emt 0:03:36]} 38. Qg3 {[%emt 0:01:09]} Kh8 {[%emt 0:06:30]} 39. Bb2 {[%emt 0:00:27]} f6 {[%emt 0:00:35]} 40. Qh4 {[%emt 0:00:00]} Rxd1 {[%emt 0:00:00]} 41. Rxd1 {[%emt 0:00:55]} Rd8 {[%emt 0:15:59]} 42. Rxd8+ {[%emt 0:00:31]} Qxd8 {[%emt 0:00:11]} 43. Nd6 {[%emt 0:00:19]} Kg8 {[%emt 0:01:41]} 44. Qxh7+ {[%emt 0:03:47]} Kf8 {[%emt 0:00:14]} 45. Qh8+ {[%emt 0:01:13]} Ke7 {[%emt 0:00:08]} 46. Qxd8+ {[%emt 0:00:23]} Kxd8 {[%emt 0:00:01]} 47. Nc4 {[%emt 0:01:12]} Bc7 {[%emt 0:02:01]} 48. Kg1 {[%emt 0:01:04]} Kd7 {[%emt 0:01:05]} 49. Kf2 {[%emt 0:01:23]} Ke7 {[%emt 0:02:05]} 50. g4 {[%emt 0:01:30]} Kf7 {[%emt 0:03:57]} 51. h4 {[%emt 0:00:24]} Bxc4 {[%emt 0:03:23]} 52. bxc4 {[%emt 0:00:02]} Bd6 {[%emt 0:01:01]} 53. Kf3 {[%emt 0:00:26]} Bc7 {[%emt 0:01:21]} 54. h5 {[%emt 0:00:05]} Bd8 {[%emt 0:00:45]} 55. Bc3 {[%emt 0:01:36]} Ke8 {[%emt 0:00:57]} 56. e4 {[%emt 0:02:35]} Kf7 {[%emt 0:01:49]} 57. e5 {[%emt 0:00:48]} fxe5 {[%emt 0:01:08]} 58. Bxe5 {[%emt 0:00:08]} Bb6 {[%emt 0:01:46]} 59. Be4 {[%emt 0:01:23]} Na6 {[%emt 0:00:31]} 60. g5 {[%emt 0:00:19]} Bc7 {[%emt 0:00:50]} 61. Bc3 {[%emt 0:01:22]} Bd8 {[%emt 0:01:16]} 62. Bg6+ {[%emt 0:01:14]} Kg8 {[%emt 0:00:41]} 63. h6 {[%emt 0:00:09]} Be7 {[%emt 0:00:23]} 64. Bxg7 {[%emt 0:00:22]} Nb4 {[%emt 0:00:43]} 65. Be5 {[%emt 0:00:15]} 1-0